fUSD/lending_fUSD_20250213
["ID","MTS","AMOUNT","RATE_DAILY","PERIOD"]
[352915955,1739418653467,-2000.0,0.00016499,2]
[352915956,1739418653476,-500.0,0.00016499,2]
[352915957,1739418653485,-409638.27261492,0.000165,5]
[352915958,1739418653497,-2168.44816612,0.000165,5]
[352915959,1739418653508,-4886.35409645,0.000165,5]
[352915960,1739418657410,3050.53781694,0.00020743,60]
[352915961,1739418674575,500.0,0.0002,120]
[352915962,1739419066439,157.53,0.00010137,2]
[352915963,1739419162580,835.1313,8.836e-05,2]
[352915964,1739419164549,3860.9574,8.836e-05,2]
[352915965,1739419178947,1220.191,8.699e-05,2]
[352915966,1739419290009,4469.7447977,0.00020753,120]
[352915967,1739419317692,3082.51441573,0.00020753,120]
[352915968,1739419331765,3220.827,8.836e-05,2]
[352915978,1739419528031,557.5635,8.836e-05,2]
[352915983,1739419608144,-542.0,0.00013422,2]
[352915984,1739419608167,-150.0,0.00014406,2]
[352915985,1739419608189,-150.0,0.00014764,2]
[352915986,1739419608212,-150.0,0.00014997,2]
[352915987,1739419608233,-506.08,0.00015026,2]
[352915988,1739419608257,-866.55,0.00015041,2]
[352915989,1739419608278,-150.0,0.00015178,2]
[352915990,1739419608299,-793.78,0.00015185,2]
[352915991,1739419608319,-544.5408576,0.00015185,2]
[352915992,1739419662260,12254.4855,8.836e-05,2]
[352915993,1739419736699,1436.94,0.0002,120]
[352916021,1739419832144,-322.60292871,0.00015205,2]
[352916022,1739419832300,-177.39707129,0.00015205,2]
[352916023,1739419832310,-205.5,0.00015208,2]
[352916024,1739419832321,-300.0,0.0001539,2]
[352916025,1739419832331,-150.23,0.0001539,2]
[352916026,1739419832341,-958.89259871,0.00015391,2]
[352916027,1739419832560,-22941.10740129,0.00015391,2]
[352916028,1739419832571,-508.12,0.00015391,2]
[352916029,1739419832581,-491.33,0.00015391,2]
[352916030,1739419832591,-497.14,0.00015391,2]
[352916031,1739419832601,-497.68,0.00015391,2]
[352916032,1739419832612,-1000.0,0.00015398,2]
[352916033,1739419832622,-499.32,0.00015398,2]
[352916034,1739419832632,-500.98,0.00015398,2]
[352916035,1739419832643,-505.08,0.00015398,2]
[352916036,1739419832653,-498.4,0.00015398,2]
[352916037,1739419832663,-497.95,0.00015398,2]
[352916038,1739419832673,-495.09,0.00015398,2]
[352916039,1739419832684,-250.0,0.0001541,2]
[352916040,1739419832694,-205.35,0.0001555,2]
[352916041,1739419832705,-165.61,0.00015585,2]
[352916042,1739419832715,-3007.0,0.000156,5]
[352916043,1739419832724,-150.0,0.0001565,2]
[352916044,1739419832735,-505.34,0.00015651,2]
[352916045,1739419832744,-505.72,0.00015651,2]
[352916046,1739419832754,-497.72,0.00015651,2]
[352916047,1739419832764,-502.31,0.00015651,2]
[352916049,1739419832780,-494.47,0.00015651,2]
[352916051,1739419832790,-496.52,0.00015651,2]
[352916053,1739419832800,-1000.0,0.00015651,2]
[352916055,1739419832810,-900.0,0.00015651,2]
[352916057,1739419832820,-200.0,0.00015673,5]
[352916059,1739419832830,-542.0,0.00015686,2]
[352916061,1739419832840,-150.0,0.0001582,2]
[352916063,1739419832849,-81.89597686,0.0001582,2]
[352916090,1739419837974,-1875.52560704,0.0001582,2]
[352916091,1739419838080,-1956.5784161,0.0001582,2]
[352916092,1739419838097,-564.459,0.0001582,2]
[352916093,1739419838112,-1279.16,0.00015892,2]
[352916094,1739419838129,-2030.736,0.00015892,2]
[352916095,1739419838144,-151.1,0.00015892,2]
[352916096,1739419838161,-640.162,0.00015892,2]
[352916097,1739419838177,-571.656,0.00015892,2]
[352916098,1739419838194,-1833.439,0.00015892,2]
[352916099,1739419838210,-1272.501,0.00015892,2]
[352916100,1739419838226,-910.69,0.00015892,2]
[352916101,1739419838243,-3101.121,0.00015892,2]
[352916102,1739419838260,-787.0,0.00015892,2]
[352916103,1739419838275,-541.903,0.00015892,2]
[352916104,1739419838291,-4036.804,0.00015892,2]
[352916105,1739419838308,-188.334421,0.00016,2]
[352916106,1739419838325,-150.8967355,0.00016169,2]
[352916107,1739419838342,-381.73184239,0.00016206,2]
[352916108,1739419838359,-40303.84455078,0.00016261,2]
[352916109,1739419838375,-40303.84455078,0.00016276,2]
[352916110,1739419838392,-40303.84455078,0.00016292,2]
[352916112,1739419838408,-150.0,0.000163,2]
[352916114,1739419838424,-40303.84455078,0.00016307,2]
[352916115,1739419838441,-40303.84455078,0.00016323,2]
[352916116,1739419838459,-1851.804,0.00016338,2]
[352916117,1739419838478,-179.473,0.00016338,2]
[352916118,1739419838496,-40303.84455078,0.00016338,2]
[352916121,1739419838515,-40303.84455078,0.00016354,2]
[352916122,1739419838531,-502.16,0.00016354,2]
[352916123,1739419838549,-498.03,0.00016354,2]
[352916124,1739419838566,-102544.77235967,0.00016359,2]
[352916125,1739419838582,-40303.84455078,0.00016369,2]
[352916126,1739419838599,-40303.84455078,0.00016385,2]
[352916127,1739419838615,-231.0,0.000164,2]
[352916128,1739419838631,-367.0,0.000164,2]
[352916129,1739419838647,-14818.49316823,0.00016428,2]
[352916130,1739419838667,-115921.61069968,0.00016428,2]
[352916131,1739419838687,-611.70497818,0.00016428,2]
[352916132,1739419838707,-445.52730233,0.00016428,2]
[352916133,1739419838726,-1249.3,0.00016428,2]
[352916134,1739419838805,-8988.66496354,0.00016428,2]
[352916135,1739419838830,-1167.91008124,0.00016428,2]
[352916136,1739419838858,-1336.87707369,0.00016428,2]
[352916137,1739419838877,-1528.97109554,0.00016428,2]
[352916205,1739419840416,-431.20286139,0.00016428,2]
[352916302,1739419843044,-3020.91631734,0.000164,2]
[352916306,1739419843097,-3758.07314566,0.000164,2]
[352916307,1739419843152,-11769.43446262,0.000164,2]
[352916308,1739419843276,-428.10565081,0.000164,2]
[352916309,1739419843288,-1167.37528239,0.000164,2]
[352916310,1739419843300,-1072.30023744,0.000164,2]
[352916311,1739419843312,-19087.63945452,0.000164,2]
[352916312,1739419843322,-201377.0586322,0.00016428,2]
[352916313,1739419843352,-1392.54453,0.00016428,2]
[352916314,1739419843364,-2362.76890421,0.00016428,2]
[352916317,1739419843385,-869.77215522,0.00016428,2]
[352916318,1739419843611,-422.06000004,0.00016428,2]
[352916319,1739419843623,-57749.77811251,0.00016428,2]
[352916320,1739419843633,-159.16,0.00016428,2]
[352916321,1739419843643,-1205.5243,0.00016437,2]
[352916322,1739419843652,-999.0,0.00016437,2]
[352916323,1739419843662,-870.0,0.00016438,2]
[352916324,1739419843671,-501.73003047,0.00016438,2]
[352916325,1739419843682,-251.25422869,0.00016438,2]
[352916326,1739419843691,-492.92461826,0.00016438,2]
[352916327,1739419843701,-500.0,0.00016438,2]
[352916328,1739419843710,-444.34286245,0.00016438,2]
[352916329,1739419843720,-501.57086646,0.00016438,2]
[352916330,1739419843729,-505.77792652,0.00016438,2]
[352916331,1739419843739,-1982.806013,0.00016438,2]
[352916332,1739419843749,-163.149451,0.00016438,2]
[352916333,1739419843758,-155.637992,0.00016438,2]
[352916334,1739419843768,-504.01595191,0.00016438,2]
[352916335,1739419843778,-619.0116274,0.00016438,2]
[352916336,1739419843787,-1901.609148,0.00016438,2]
[352916337,1739419843797,-500.0,0.00016438,2]
[352916338,1739419843809,-500.0,0.00016438,2]
[352916339,1739419843819,-501.23182657,0.00016438,2]
[352916340,1739419843828,-500.0,0.00016438,2]
[352916341,1739419843838,-500.0,0.00016438,2]
[352916342,1739419843847,-501.4675068,0.00016438,2]
[352916343,1739419843857,-1016.27,0.00016438,2]
[352916344,1739419843868,-500.0,0.00016438,2]
[352916345,1739419843878,-500.0,0.00016438,2]
[352916346,1739419843887,-501.85250831,0.00016438,2]
[352916347,1739419843897,-882.25,0.00016438,2]
[352916348,1739419843907,-501.25082188,0.00016438,2]
[352916349,1739419843917,-1255.35,0.00016438,2]
[352916350,1739419843927,-550.33,0.00016438,2]
[352916351,1739419843936,-500.0,0.00016438,2]
[352916352,1739419843946,-1045.61,0.00016438,2]
[352916353,1739419843956,-500.0,0.00016438,2]
[352916354,1739419843965,-500.0,0.00016438,2]
[352916355,1739419843975,-500.0,0.00016438,2]
[352916356,1739419843984,-500.0,0.00016438,2]
[352916357,1739419843994,-500.0,0.00016438,2]
[352916358,1739419844004,-500.0,0.00016438,2]
[352916359,1739419844015,-500.0,0.00016438,2]
[352916360,1739419844025,-793.67,0.00016438,2]
[352916361,1739419844034,-500.0,0.00016438,2]
[352916362,1739419844043,-500.0,0.00016438,2]
[352916363,1739419844052,-500.0,0.00016438,2]
[352916364,1739419844061,-503.03099662,0.00016438,2]
[352916365,1739419844070,-630.78,0.00016438,2]
[352916366,1739419844080,-1545.88,0.00016438,2]
[352916367,1739419844090,-735.08,0.00016438,2]
[352916368,1739419844100,-500.0,0.00016438,2]
[352916369,1739419844112,-716.87,0.00016438,2]
[352916370,1739419844121,-174.365963,0.00016438,2]
[352916371,1739419844131,-505.26213483,0.00016438,2]
[352916372,1739419844141,-507.63554887,0.00016438,2]
[352916373,1739419844151,-500.0,0.00016438,2]
[352916374,1739419844161,-3233.32,0.00016438,2]
[352916375,1739419844171,-500.0,0.00016438,2]
[352916376,1739419844181,-589.41,0.00016438,2]
[352916377,1739419844191,-158.503749,0.00016438,2]
[352916378,1739419844201,-479.89468471,0.00016438,2]
[352916379,1739419844211,-500.0,0.00016438,2]
[352916380,1739419844227,-500.0,0.00016438,2]
[352916381,1739419844239,-500.0,0.00016438,2]
[352916382,1739419844250,-500.0,0.00016438,2]
[352916383,1739419844260,-1006.29,0.00016438,2]
[352916384,1739419844272,-705.74,0.00016438,2]
[352916385,1739419844283,-500.0,0.00016438,2]
[352916386,1739419844294,-500.0,0.00016438,2]
[352916387,1739419844304,-572.4,0.00016438,2]
[352916388,1739419844314,-500.0,0.00016438,2]
[352916389,1739419844323,-500.0,0.00016438,2]
[352916390,1739419844333,-888.78,0.00016438,2]
[352916391,1739419844343,-500.0,0.00016438,2]
[352916392,1739419844353,-511.33423952,0.00016438,2]
[352916393,1739419844363,-500.0,0.00016438,2]
[352916394,1739419844373,-500.0,0.00016438,2]
[352916395,1739419844383,-512.0298175,0.00016438,2]
[352916396,1739419844393,-602.74,0.00016438,2]
[352916397,1739419844403,-500.0,0.00016438,2]
[352916398,1739419844413,-500.0,0.00016438,2]
[352916399,1739419844423,-1222.02,0.00016438,2]
[352916400,1739419844432,-1030.66,0.00016438,2]
[352916401,1739419844442,-500.0,0.00016438,2]
[352916402,1739419844452,-500.0,0.00016438,2]
[352916403,1739419844462,-500.0,0.00016438,2]
[352916404,1739419844475,-512.03459044,0.00016438,2]
[352916405,1739419844485,-500.0,0.00016438,2]
[352916406,1739419844495,-575.44,0.00016438,2]
[352916407,1739419844504,-500.0,0.00016438,2]
[352916408,1739419844515,-500.0,0.00016438,2]
[352916409,1739419844524,-500.0,0.00016438,2]
[352916410,1739419844534,-963.07,0.00016438,2]
[352916411,1739419844547,-500.0,0.00016438,2]
[352916412,1739419844556,-500.0,0.00016438,2]
[352916413,1739419844566,-500.0,0.00016438,2]
[352916414,1739419844576,-500.0,0.00016438,2]
[352916415,1739419844586,-500.0,0.00016438,2]
[352916416,1739419844597,-500.0,0.00016438,2]
[352916417,1739419844607,-500.0,0.00016438,2]
[352916418,1739419844617,-554.91918693,0.00016438,2]
[352916419,1739419844627,-500.0,0.00016438,2]
[352916420,1739419844636,-675.7,0.00016438,2]
[352916421,1739419844646,-500.0,0.00016438,2]
[352916422,1739419844656,-500.0,0.00016438,2]
[352916423,1739419844666,-464.22095968,0.00016438,2]
[352916424,1739419844675,-500.0,0.00016438,2]
[352916425,1739419844685,-500.0,0.00016438,2]
[352916426,1739419844696,-500.0,0.00016438,2]
[352916427,1739419844706,-500.0,0.00016438,2]
[352916428,1739419844715,-500.0,0.00016438,2]
[352916429,1739419844727,-500.0,0.00016438,2]
[352916430,1739419844737,-708.61,0.00016438,2]
[352916431,1739419844748,-500.0,0.00016438,2]
[352916432,1739419844757,-506.61389135,0.00016438,2]
[352916433,1739419844767,-2345.39,0.00016438,2]
[352916434,1739419844777,-500.0,0.00016438,2]
[352916435,1739419844786,-500.0,0.00016438,2]
[352916436,1739419844796,-841.19,0.00016438,2]
[352916437,1739419844805,-500.0,0.00016438,2]
[352916438,1739419844815,-1520.43,0.00016438,2]
[352916439,1739419844825,-158.568018,0.00016438,2]
[352916440,1739419844835,-500.0,0.00016438,2]
[352916441,1739419844844,-500.0,0.00016438,2]
[352916442,1739419844854,-500.0,0.00016438,2]
[352916443,1739419844864,-506.25916753,0.00016438,2]
[352916444,1739419844874,-500.0,0.00016438,2]
[352916445,1739419844883,-504.51118405,0.00016438,2]
[352916446,1739419844893,-796.45,0.00016438,2]
[352916447,1739419844903,-500.0,0.00016438,2]
[352916448,1739419844913,-500.0,0.00016438,2]
[352916449,1739419844922,-898.37,0.00016438,2]
[352916450,1739419844932,-768.86,0.00016438,2]
[352916451,1739419844941,-500.0,0.00016438,2]
[352916452,1739419844951,-500.0,0.00016438,2]
[352916453,1739419844960,-500.0,0.00016438,2]
[352916454,1739419844969,-500.0,0.00016438,2]
[352916455,1739419844979,-699.41,0.00016438,2]
[352916456,1739419844988,-500.0,0.00016438,2]
[352916457,1739419844998,-500.0,0.00016438,2]
[352916458,1739419845008,-518.45642061,0.00016438,2]
[352916459,1739419845018,-500.0,0.00016438,2]
[352916460,1739419845027,-500.0,0.00016438,2]
[352916461,1739419845037,-1658.16,0.00016438,2]
[352916462,1739419845047,-511.8,0.00016438,2]
[352916463,1739419845057,-994.38,0.00016438,2]
[352916464,1739419845067,-500.0,0.00016438,2]
[352916465,1739419845077,-694.78,0.00016438,2]
[352916466,1739419845087,-500.0,0.00016438,2]
[352916467,1739419845096,-500.0,0.00016438,2]
[352916468,1739419845106,-500.0,0.00016438,2]
[352916469,1739419845115,-500.0,0.00016438,2]
[352916470,1739419845125,-507.17891097,0.00016438,2]
[352916471,1739419845134,-500.0,0.00016438,2]
[352916472,1739419845144,-500.0,0.00016438,2]
[352916473,1739419845153,-500.0,0.00016438,2]
[352916474,1739419845163,-500.0,0.00016438,2]
[352916475,1739419845173,-1360.36,0.00016438,2]
[352916476,1739419845183,-527.59,0.00016438,2]
[352916477,1739419845192,-775.49,0.00016438,2]
[352916478,1739419845201,-516.5106614,0.00016438,2]
[352916479,1739419845210,-500.0,0.00016438,2]
[352916480,1739419845220,-500.0,0.00016438,2]
[352916481,1739419845229,-592.47,0.00016438,2]
[352916482,1739419845239,-500.0,0.00016438,2]
[352916483,1739419845248,-500.0,0.00016438,2]
[352916484,1739419845257,-1094.39,0.00016438,2]
[352916485,1739419845267,-2149.54,0.00016438,2]
[352916486,1739419845277,-1120.95,0.00016438,2]
[352916487,1739419845287,-500.0,0.00016438,2]
[352916488,1739419845297,-500.0,0.00016438,2]
[352916489,1739419845307,-579.62629708,0.00016438,2]
[352916490,1739419845317,-500.0,0.00016438,2]
[352916491,1739419845327,-500.0,0.00016438,2]
[352916492,1739419845337,-500.0,0.00016438,2]
[352916493,1739419845348,-500.0,0.00016438,2]
[352916494,1739419845358,-500.0,0.00016438,2]
[352916495,1739419845368,-1461.49,0.00016438,2]
[352916496,1739419845377,-500.0,0.00016438,2]
[352916497,1739419845389,-500.0,0.00016438,2]
[352916498,1739419845399,-583.39,0.00016438,2]
[352916499,1739419845408,-661.12,0.00016438,2]
[352916500,1739419845418,-500.0,0.00016438,2]
[352916501,1739419845427,-1234.61,0.00016438,2]
[352916502,1739419845436,-500.86250277,0.00016438,2]
[352916503,1739419845446,-500.0,0.00016438,2]
[352916504,1739419845456,-1906.12,0.00016438,2]
[352916505,1739419845468,-500.0,0.00016438,2]
[352916506,1739419845478,-500.0,0.00016438,2]
[352916507,1739419845489,-500.0,0.00016438,2]
[352916508,1739419845498,-500.0,0.00016438,2]
[352916509,1739419845507,-500.0,0.00016438,2]
[352916510,1739419845519,-500.0,0.00016438,2]
[352916511,1739419845528,-1260.95,0.00016438,2]
[352916512,1739419845537,-500.0,0.00016438,2]
[352916513,1739419845549,-500.0,0.00016438,2]
[352916514,1739419845558,-500.0,0.00016438,2]
[352916515,1739419845567,-500.0,0.00016438,2]
[352916516,1739419845576,-1109.29,0.00016438,2]
[352916517,1739419845586,-505.71573866,0.00016438,2]
[352916518,1739419845595,-500.0,0.00016438,2]
[352916519,1739419845605,-500.0,0.00016438,2]
[352916520,1739419845614,-156.619387,0.00016438,2]
[352916521,1739419845624,-1333.68,0.00016438,2]
[352916522,1739419845634,-988.27,0.00016438,2]
[352916523,1739419845643,-500.0,0.00016438,2]
[352916524,1739419845653,-500.0,0.00016438,2]
[352916525,1739419845662,-500.0,0.00016438,2]
[352916526,1739419845672,-507.73304029,0.00016438,2]
[352916527,1739419845682,-500.0,0.00016438,2]
[352916528,1739419845691,-500.0,0.00016438,2]
[352916529,1739419845701,-1225.44,0.00016438,2]
[352916530,1739419845710,-2198.42,0.00016438,2]
[352916531,1739419845719,-500.0,0.00016438,2]
[352916532,1739419845730,-500.0,0.00016438,2]
[352916533,1739419845740,-500.0,0.00016438,2]
[352916534,1739419845750,-500.0,0.00016438,2]
[352916535,1739419845760,-500.0,0.00016438,2]
[352916537,1739419845770,-1078.67,0.00016438,2]
[352916538,1739419845779,-1231.21,0.00016438,2]
[352916539,1739419845788,-2044.31,0.00016438,2]
[352916540,1739419845796,-500.0,0.00016438,2]
[352916541,1739419845806,-1281.74,0.00016438,2]
[352916542,1739419845816,-1035.4,0.00016438,2]
[352916543,1739419845825,-850.97,0.00016438,2]
[352916544,1739419845834,-502.89443417,0.00016438,2]
[352916545,1739419845843,-2151.43,0.00016438,2]
[352916546,1739419845853,-500.0,0.00016438,2]
[352916547,1739419845862,-500.0,0.00016438,2]
[352916548,1739419845871,-500.0,0.00016438,2]
[352916549,1739419845881,-289.25902866,0.00016438,2]
[352916550,1739419845890,-1192.82,0.00016438,2]
[352916551,1739419845899,-500.0,0.00016438,2]
[352916552,1739419845908,-500.80875895,0.00016438,2]
[352916553,1739419845917,-1357.85,0.00016438,2]
[352916554,1739419845927,-500.0,0.00016438,2]
[352916555,1739419845936,-1009.26,0.00016438,2]
[352916556,1739419845945,-1781.57,0.00016438,2]
[352916557,1739419845955,-505.99329737,0.00016438,2]
[352916558,1739419845964,-500.0,0.00016438,2]
[352916559,1739419845973,-507.30938301,0.00016438,2]
[352916561,1739419845982,-501.95797251,0.00016438,2]
[352916563,1739419845992,-500.0,0.00016438,2]
[352916564,1739419846001,-1190.99,0.00016438,2]
[352916566,1739419846010,-1652.72,0.00016438,2]
[352916568,1739419846019,-508.31733396,0.00016438,2]
[352916571,1739419846029,-500.0,0.00016438,2]
[352916573,1739419846039,-500.0,0.00016438,2]
[352916574,1739419846049,-507.78055788,0.00016438,2]
[352916576,1739419846059,-500.0,0.00016438,2]
[352916577,1739419846068,-500.0,0.00016438,2]
[352916578,1739419846078,-500.0,0.00016438,2]
[352916579,1739419846088,-1513.06,0.00016438,2]
[352916580,1739419846097,-500.0,0.00016438,2]
[352916581,1739419846107,-241.84799949,0.00016438,2]
[352916582,1739419846117,-501.01036154,0.00016438,2]
[352916583,1739419846127,-500.0,0.00016438,2]
[352916584,1739419846137,-509.21836136,0.00016438,2]
[352916585,1739419846148,-953.14,0.00016438,2]
[352916586,1739419846158,-1191.2,0.00016438,2]
[352916587,1739419846168,-500.0,0.00016438,2]
[352916588,1739419846177,-157.10936,0.00016438,2]
[352916589,1739419846188,-540.84,0.00016438,2]
[352916590,1739419846198,-498.20171991,0.00016438,2]
[352916591,1739419846207,-500.0,0.00016438,2]
[352916592,1739419846217,-1320.31,0.00016438,2]
[352916593,1739419846228,-500.0,0.00016438,2]
[352916594,1739419846238,-1646.89,0.00016438,2]
[352916595,1739419846247,-500.0,0.00016438,2]
[352916596,1739419846257,-500.0,0.00016438,2]
[352916597,1739419846268,-500.0,0.00016438,2]
[352916598,1739419846277,-500.0,0.00016438,2]
[352916599,1739419846287,-500.0,0.00016438,2]
[352916600,1739419846296,-2179.2,0.00016438,2]
[352916601,1739419846306,-500.0,0.00016438,2]
[352916602,1739419846316,-500.0,0.00016438,2]
[352916603,1739419846326,-500.0,0.00016438,2]
[352916604,1739419846336,-2573.69,0.00016438,2]
[352916605,1739419846345,-829.46,0.00016438,2]
[352916606,1739419846355,-1192.27,0.00016438,2]
[352916607,1739419846365,-159.946321,0.00016438,2]
[352916608,1739419846375,-500.0,0.00016438,2]
[352916609,1739419846385,-508.19562705,0.00016438,2]
[352916610,1739419846396,-2185.29,0.00016438,2]
[352916611,1739419846405,-500.0,0.00016438,2]
[352916613,1739419846415,-1053.87,0.00016438,2]
[352916614,1739419846425,-2023.52,0.00016438,2]
[352916615,1739419846434,-500.0,0.00016438,2]
[352916616,1739419846446,-764.49,0.00016438,2]
[352916617,1739419846455,-888.74,0.00016438,2]
[352916618,1739419846465,-500.0,0.00016438,2]
[352916619,1739419846477,-509.81486679,0.00016438,2]
[352916620,1739419846487,-683.72,0.00016438,2]
[352916621,1739419846497,-321.80905337,0.00016438,2]
[352916622,1739419846507,-500.0,0.00016438,2]
[352916623,1739419846518,-620.42236622,0.00016438,2]
[352916624,1739419846528,-500.0,0.00016438,2]
[352916625,1739419846538,-500.0,0.00016438,2]
[352916627,1739419846551,-500.0,0.00016438,2]
[352916629,1739419846563,-500.0,0.00016438,2]
[352916630,1739419846572,-1299.45,0.00016438,2]
[352916631,1739419846582,-500.0,0.00016438,2]
[352916632,1739419846592,-1456.45,0.00016438,2]
[352916633,1739419846602,-701.1,0.00016438,2]
[352916634,1739419846611,-500.0,0.00016438,2]
[352916635,1739419846622,-500.0,0.00016438,2]
[352916636,1739419846631,-500.0,0.00016438,2]
[352916637,1739419846642,-500.0,0.00016438,2]
[352916638,1739419846651,-1313.7,0.00016438,2]
[352916639,1739419846661,-500.0,0.00016438,2]
[352916640,1739419846671,-507.3940069,0.00016438,2]
[352916641,1739419846681,-1560.95,0.00016438,2]
[352916642,1739419846692,-1866.98,0.00016438,2]
[352916643,1739419846702,-506.72980101,0.00016438,2]
[352916644,1739419846712,-500.0,0.00016438,2]
[352916645,1739419846722,-1368.59,0.00016438,2]
[352916646,1739419846733,-1108.04,0.00016438,2]
[352916647,1739419846743,-500.0,0.00016438,2]
[352916648,1739419846754,-500.0,0.00016438,2]
[352916649,1739419846764,-500.0,0.00016438,2]
[352916650,1739419846775,-668.09,0.00016438,2]
[352916651,1739419846785,-500.0,0.00016438,2]
[352916652,1739419846796,-1498.4,0.00016438,2]
[352916653,1739419846806,-500.0,0.00016438,2]
[352916654,1739419846838,-500.0,0.00016438,2]
[352916655,1739419846902,-200.0,0.00016438,2]
[352916656,1739419847000,-500.0,0.00016438,2]
[352916657,1739419847067,-500.0,0.00016438,2]
[352916658,1739419847165,-500.0,0.00016438,2]
[352916659,1739419847261,-500.0,0.00016438,2]
[352916660,1739419847386,-500.0,0.00016438,2]
[352916661,1739419847479,-500.0,0.00016438,2]
[352916662,1739419847589,-500.0,0.00016438,2]
[352916663,1739419847680,-588.84,0.00016438,2]
[352916664,1739419847767,-1229.61,0.00016438,2]
[352916665,1739419847867,-500.0,0.00016438,2]
[352916666,1739419847945,-500.0,0.00016438,2]
[352916667,1739419847963,-500.0,0.00016438,2]
[352916668,1739419847976,-1152.21,0.00016438,2]
[352916669,1739419847988,-1065.89,0.00016438,2]
[352916670,1739419847999,-1676.8,0.00016438,2]
[352916671,1739419848009,-505.20903879,0.00016438,2]
[352916672,1739419848192,-500.0,0.00016438,2]
[352916673,1739419848213,-500.0,0.00016438,2]
[352916674,1739419848224,-500.0,0.00016438,2]
[352916675,1739419848234,-1216.88,0.00016438,2]
[352916676,1739419848244,-500.0,0.00016438,2]
[352916677,1739419848254,-500.0,0.00016438,2]
[352916678,1739419848263,-520.93665769,0.00016438,2]
[352916679,1739419848274,-378.33657326,0.00016438,2]
[352916680,1739419848283,-655.89,0.00016438,2]
[352916681,1739419848293,-1262.72,0.00016438,2]
[352916682,1739419848303,-512.0,0.00016438,2]
[352916683,1739419848313,-2038.56,0.00016438,2]
[352916684,1739419848323,-1101.37,0.00016438,2]
[352916685,1739419848334,-500.0,0.00016438,2]
[352916686,1739419848344,-2558.24,0.00016438,2]
[352916687,1739419848355,-502.18394625,0.00016438,2]
[352916688,1739419848365,-500.0,0.00016438,2]
[352916689,1739419848375,-500.0,0.00016438,2]
[352916690,1739419848385,-611.43,0.00016438,2]
[352916691,1739419848395,-620.23,0.00016438,2]
[352916692,1739419848404,-500.0,0.00016438,2]
[352916693,1739419848413,-841.5,0.00016438,2]
[352916694,1739419848423,-501.13995368,0.00016438,2]
[352916695,1739419848432,-500.0,0.00016438,2]
[352916696,1739419848441,-1494.61,0.00016438,2]
[352916697,1739419848451,-500.0,0.00016438,2]
[352916698,1739419848460,-897.12,0.00016438,2]
[352916699,1739419848472,-500.0,0.00016438,2]
[352916700,1739419848482,-500.0,0.00016438,2]
[352916701,1739419848492,-500.0,0.00016438,2]
[352916702,1739419848501,-500.0,0.00016438,2]
[352916703,1739419848511,-500.0,0.00016438,2]
[352916704,1739419848522,-300.0,0.00016438,2]
[352916705,1739419848531,-1326.96,0.00016438,2]
[352916706,1739419848541,-500.0,0.00016438,2]
[352916707,1739419848552,-500.0,0.00016438,2]
[352916708,1739419848562,-500.0,0.00016438,2]
[352916709,1739419848571,-500.0,0.00016438,2]
[352916710,1739419848581,-500.0,0.00016438,2]
[352916711,1739419848591,-500.0,0.00016438,2]
[352916712,1739419848601,-507.79445428,0.00016438,2]